bitfinex-derivatives/quotes_BTCF0:USTF0_20251119
["timestamp","ask_amount","ask_price","bid_price","bid_amount"]
[1763529449100,0.00027423,91166.0,91160.0,0.00219803]
[1763529449101,0.11005603,91166.0,91160.0,0.00219803]
[1763529449290,0.3608,91161.0,91160.0,0.00219803]
[1763529450487,0.3658,91161.0,91160.0,0.00219803]
[1763529450789,0.3658,91161.0,91160.0,0.01549803]
[1763529450990,0.005,91161.0,91160.0,0.03847803]
[1763529451190,0.005,91161.0,91160.0,0.01549803]
[1763529451591,0.3658,91161.0,91160.0,0.00219803]
[1763529452190,0.1097883,91160.0,91156.0,0.00016459]
[1763529453702,0.1117883,91160.0,91156.0,0.00016459]
[1763529454199,0.1098124,91140.0,91139.0,0.3608]
[1763529454388,0.1098071,91145.0,91140.0,0.00219803]
[1763529454591,0.3608,91141.0,91140.0,0.01549803]
[1763529454898,0.3608,91141.0,91140.0,0.00219803]
[1763529455803,0.3618,91141.0,91140.0,0.00219803]
[1763529456191,0.3628,91141.0,91140.0,0.00219803]
[1763529456386,0.3628,91141.0,91131.0,0.00016459]
[1763529456387,0.1098184,91135.0,91131.0,0.00016459]
[1763529456594,0.470622,91132.0,91131.0,0.00016459]
[1763529458102,0.471622,91132.0,91131.0,0.00016459]
[1763529458800,0.3618,91132.0,91131.0,0.04525459]
[1763529458991,0.3628,91132.0,91131.0,0.04525459]
[1763529461596,0.002,91132.0,91131.0,0.04525459]
[1763529463006,0.002,91132.0,91131.0,0.00016459]
[1763529463198,0.3628,91132.0,91131.0,0.00016459]
[1763529463594,0.3628,91132.0,91131.0,0.04525459]
[1763529464103,0.34961426,91132.0,91131.0,0.04525459]
[1763529464903,0.35061426,91132.0,91131.0,0.15507779]
[1763529465205,0.35161426,91132.0,91131.0,0.15507779]
[1763529466802,0.46143626,91132.0,91131.0,0.00016459]
[1763529467304,0.1098352,91121.0,91110.0,0.0133]
[1763529467505,0.35161426,91132.0,91110.0,0.05839]
[1763529467506,0.1098401,91117.0,91110.0,0.05839]
[1763529467702,0.1098442,91114.0,91110.0,0.01549803]
[1763529467902,0.1098355,91121.0,91111.0,0.1549371]
[1763529468098,0.1098429,91115.0,91111.0,0.04509]
[1763529468300,0.1098429,91115.0,91111.0,0.02298]
[1763529468708,0.1098375,91120.0,91112.0,0.1098461]
[1763529468896,0.1098405,91117.0,91110.0,0.01549803]
[1763529469096,0.3608,91122.0,91110.0,0.01549803]
[1763529469305,0.1098354,91121.0,91111.0,0.04509]
[1763529469503,0.1098354,91121.0,91115.0,0.1098417]
[1763529469697,0.3608,91122.0,91111.0,0.04509]
[1763529469898,0.4706351,91122.0,91118.0,0.1098378]
[1763529470211,0.3608,91122.0,91118.0,0.1098378]
[1763529470505,0.3608,91122.0,91114.0,0.109843]
[1763529470698,0.3608,91122.0,91121.0,0.04509]
[1763529470900,0.1098352,91121.0,91120.0,0.01549803]
[1763529471104,0.1098352,91121.0,91120.0,0.06058803]
[1763529471306,0.1098352,91121.0,91120.0,0.01549803]
[1763529472006,0.1098352,91121.0,91120.0,0.00219803]
[1763529472196,0.3628,91122.0,91121.0,0.1098352]
[1763529472602,0.3618,91122.0,91121.0,0.1098352]
[1763529473202,0.3618,91122.0,91121.0,0.1328152]
[1763529473404,0.3618,91122.0,91121.0,0.1549252]
[1763529473708,0.3608,91122.0,91121.0,0.1549252]
[1763529474207,0.34861236,91122.0,91121.0,0.1549252]
[1763529474405,0.34961236,91122.0,91121.0,0.1549252]
[1763529476008,0.1098352,91121.0,91120.0,0.01549803]
[1763529476307,0.1098352,91121.0,91120.0,0.0133]
[1763529477004,0.1108352,91121.0,91120.0,0.01549803]
[1763529477401,0.1108352,91121.0,91120.0,0.03847803]
[1763529477810,0.1118352,91121.0,91120.0,0.03847803]
[1763529479312,0.08545914,91121.0,91120.0,0.03847803]
[1763529479512,0.08545914,91121.0,91120.0,0.00219803]
[1763529479718,0.1098473,91112.0,91110.0,0.05657]
[1763529479899,0.1098485,91110.0,91107.0,9e-08]
[1763529480103,0.3608,91108.0,91107.0,9e-08]
[1763529480305,0.38733872,91108.0,91107.0,9e-08]
[1763529480915,0.38733872,91108.0,91107.0,0.01278009]
[1763529481505,0.38733872,91108.0,91107.0,9e-08]
[1763529481906,0.38833872,91108.0,91107.0,9e-08]
[1763529482417,0.65381872,91108.0,91107.0,9e-08]
[1763529483005,0.65381872,91108.0,91107.0,0.05605009]
[1763529483205,0.71337474,91108.0,91107.0,0.05605009]
[1763529483415,0.65348148,91108.0,91107.0,0.05605009]
[1763529483624,0.65248148,91108.0,91107.0,0.05605009]
[1763529484015,0.65348148,91108.0,91107.0,0.05605009]
[1763529484317,0.64029,91108.0,91107.0,0.05605009]
[1763529484607,0.64129,91108.0,91107.0,0.05605009]
[1763529485017,0.64129,91108.0,91107.0,9e-08]
[1763529486115,0.34960938,91108.0,91107.0,0.16590219]
[1763529487313,0.32322963,91108.0,91107.0,0.16590219]
[1763529487620,0.32222963,91108.0,91107.0,0.05605009]
[1763529488115,0.32322963,91108.0,91107.0,0.05605009]
[1763529488512,0.32122963,91108.0,91107.0,9e-08]
[1763529488714,0.32122963,91108.0,91107.0,0.03475009]
[1763529489020,0.26548,91114.0,91112.0,0.1098457]
[1763529489216,0.26548,91114.0,91113.0,0.04327]
[1763529490523,0.1098449,91113.0,91110.0,0.00219803]
[1763529490725,0.26648,91114.0,91107.0,0.01278009]
[1763529490726,0.1098509,91108.0,91107.0,0.01278009]
[1763529490920,0.4706509,91108.0,91107.0,0.01278009]
[1763529491323,0.3608,91108.0,91107.0,0.14460219]
[1763529491521,0.3608,91108.0,91107.0,0.16590219]
[1763529491721,0.3608,91108.0,91107.0,0.05605009]
[1763529491931,0.3618,91108.0,91107.0,0.03475009]
[1763529492116,0.3618,91108.0,91107.0,0.05605009]
[1763529493912,0.001,91108.0,91107.0,0.05605009]
[1763529494426,0.3608,91116.0,91115.0,0.04327]
[1763529494624,0.36096459,91125.0,91124.0,0.1531016]
[1763529495618,0.33458959,91125.0,91124.0,0.1531016]
[1763529495924,0.33458959,91125.0,91124.0,0.04327]
[1763529496819,0.33458959,91125.0,91120.0,0.00219803]
[1763529496820,0.00016459,91134.0,91133.0,0.02197]
[1763529497012,0.02641583,91134.0,91133.0,0.04327]
[1763529497420,0.1098208,91133.0,91130.0,0.00219803]
[1763529498417,0.109834,91122.0,91121.0,0.3608]
[1763529499317,0.1098401,91117.0,91116.0,0.05605]
[1763529499629,0.4706401,91117.0,91116.0,0.05605]
[1763529499826,0.4706401,91117.0,91116.0,0.01278]
[1763529500017,0.1098497,91109.0,91103.0,0.3608]
[1763529500219,0.1098497,91109.0,91103.0,0.4706566]
[1763529500419,0.1098497,91109.0,91105.0,0.1098534]
[1763529500629,0.1098497,91109.0,91107.0,0.03475009]
[1763529500828,0.1098497,91109.0,91107.0,9e-08]
[1763529501232,0.1098497,91109.0,91107.0,0.03475009]
[1763529501529,0.4706497,91109.0,91107.0,0.03475009]
[1763529501822,0.4706497,91109.0,91107.0,0.14460179]
[1763529502229,0.3608,91109.0,91107.0,0.16590179]
[1763529502428,0.3608,91109.0,91108.0,0.04426]
[1763529502626,0.1098401,91117.0,91116.0,0.03559]
[1763529502832,0.1098473,91111.0,91110.0,0.00219803]
[1763529503620,0.1098509,91108.0,91107.0,9e-08]
[1763529503816,0.08347163,91108.0,91107.0,9e-08]
[1763529504931,0.08347163,91108.0,91107.0,0.01397009]
[1763529505326,0.08347163,91108.0,91107.0,0.03559009]
[1763529505922,0.3608,91109.0,91108.0,0.1314709]
[1763529506138,0.3608,91109.0,91108.0,0.1541109]
[1763529508128,0.3608,91109.0,91108.0,0.04368]
[1763529511431,0.3608,91109.0,91108.0,0.1535309]
[1763529511835,0.33442141,91109.0,91108.0,0.04368]
[1763529512738,0.33442141,91109.0,91107.0,0.01397009]
[1763529512739,0.1098509,91108.0,91107.0,9e-08]
[1763529514938,0.33442141,91109.0,91108.0,0.1538509]
[1763529516241,0.33442141,91109.0,91108.0,0.044]
[1763529517341,0.33442141,91109.0,91108.0,0.02194]
[1763529517644,0.33442141,91109.0,91107.0,9e-08]
[1763529517645,0.1098509,91108.0,91107.0,9e-08]
[1763529519041,0.1108509,91108.0,91107.0,9e-08]
[1763529519245,0.1118509,91108.0,91107.0,9e-08]
[1763529519846,0.08547078,91108.0,91107.0,9e-08]
[1763529520044,0.08547078,91108.0,91107.0,0.04400009]
[1763529520946,0.08547078,91108.0,91095.0,9.704e-05]
[1763529521160,0.08547078,91108.0,91086.0,0.02221447]
[1763529521161,0.4706654,91096.0,91086.0,0.02221447]
[1763529521353,0.26548,91095.0,91090.0,0.00219803]
[1763529521651,0.26548,91095.0,91094.0,0.044]
[1763529521949,0.3608,91096.0,91095.0,0.044]
[1763529522244,0.3609055,91096.0,91095.0,0.044]
[1763529522454,0.1098714,91091.0,91090.0,0.00219803]
[1763529522749,0.1098714,91091.0,91090.0,0.02413803]
[1763529522952,0.1098714,91091.0,91090.0,0.04619803]
[1763529524051,0.0001055,91096.0,91095.0,0.044]
[1763529524748,0.1098704,91092.0,91090.0,0.00219803]
[1763529524949,0.1098762,91087.0,91086.0,0.00043906]
[1763529525142,0.1099028,91065.0,91064.0,0.05732]
[1763529525347,0.00010546,91065.0,91064.0,0.05732]
[1763529526149,0.00010546,91065.0,91064.0,0.05832]
[1763529527853,2.639e-05,91065.0,91064.0,0.05932]
[1763529531851,2.639e-05,91065.0,91064.0,0.05832]
[1763529532255,2.639e-05,91065.0,91064.0,0.05732]
[1763529532764,2.639e-05,91065.0,91064.0,0.05832]
[1763529534363,0.00016468,91074.0,91073.0,0.1538931]
[1763529535363,0.00016468,91074.0,91073.0,0.044]
[1763529535559,0.00116468,91074.0,91073.0,0.044]
[1763529536557,0.00216468,91074.0,91073.0,0.044]
[1763529543068,0.00216468,91074.0,91072.0,0.01332]
[1763529543069,0.1098931,91073.0,91072.0,0.01332]
[1763529543456,0.3754131,91073.0,91072.0,0.01332]
[1763529543862,0.1099028,91065.0,91064.0,0.05722]
[1763529544263,0.1098992,91068.0,91064.0,0.05722]
[1763529544567,0.1098943,91072.0,91071.0,0.05694]
[1763529544965,0.26652,91073.0,91072.0,0.1537943]
[1763529545171,0.3764131,91073.0,91072.0,0.0439]
[1763529545469,0.3764131,91073.0,91072.0,0.1537943]
[1763529545868,0.3754131,91073.0,91072.0,0.1537943]
[1763529546061,0.26552,91073.0,91072.0,0.1537943]
[1763529546262,0.13288019,91074.0,91073.0,0.0439]
[1763529546462,0.26568468,91074.0,91073.0,0.0439]
[1763529546856,0.00016468,91074.0,91073.0,0.0439]
[1763529547567,0.00116468,91074.0,91073.0,0.0439]
[1763529547967,0.109874,91089.0,91086.0,0.0439]
[1763529548171,0.43025034,91087.0,91086.0,0.0439]
[1763529549357,0.43125034,91087.0,91086.0,0.0439]
[1763529549962,0.43225034,91087.0,91086.0,0.0439]
[1763529550657,0.43125034,91087.0,91086.0,0.0439]
[1763529550862,0.54212654,91087.0,91086.0,0.0439]
[1763529552259,0.02826034,91087.0,91086.0,0.0439]
[1763529552461,0.02826034,91087.0,91084.0,0.1098798]
[1763529552462,0.02179,91095.0,91094.0,0.1537678]
[1763529552672,0.00016468,91096.0,91095.0,0.0439]
[1763529553263,0.3608,91107.0,91106.0,0.1537533]
[1763529553470,0.38712831,91107.0,91106.0,0.1537533]
[1763529553775,0.3608,91107.0,91106.0,0.1537533]
[1763529554364,0.38259,91107.0,91106.0,0.0439]
[1763529554667,0.02279,91107.0,91106.0,0.0439]
[1763529555064,0.02179,91107.0,91106.0,0.0439]
[1763529555265,0.02179,91107.0,91106.0,0.0449]
[1763529555464,0.41498,91107.0,91106.0,0.001]
[1763529555972,0.4409259,91107.0,91106.0,0.001]
[1763529556365,0.4299359,91107.0,91106.0,0.001]
[1763529556874,0.04319,91102.0,91101.0,0.153759]
[1763529557868,0.40399,91107.0,91106.0,0.0439]
[1763529558370,0.3608,91107.0,91106.0,0.0439]
[1763529559181,0.3618,91107.0,91106.0,0.0439]
[1763529559677,0.3618,91107.0,91097.0,0.00016468]
[1763529559678,0.04319,91098.0,91097.0,0.00016468]
[1763529559872,0.04319,91098.0,91097.0,0.04406468]
[1763529560065,0.1530447,91105.0,91104.0,0.0439]
[1763529561075,0.3618,91107.0,91104.0,0.0439]
[1763529561276,0.3608,91107.0,91106.0,0.0439]
[1763529562169,0.3618,91107.0,91106.0,0.0439]
[1763529562875,0.04483439,91116.0,91115.0,0.04231]
[1763529563268,0.00016439,91116.0,91115.0,0.1521525]
[1763529563468,0.02296439,91116.0,91115.0,0.04231]
[1763529563675,0.04584439,91116.0,91115.0,0.04231]
[1763529564376,0.00016439,91116.0,91115.0,0.04231]
[1763529564582,0.09746847,91159.0,91114.0,0.1098429]
[1763529564583,0.1098123,91141.0,91125.0,0.04302]
[1763529564776,0.1098123,91141.0,91120.0,0.0139]
[1763529564777,0.3608,91142.0,91138.0,0.1528348]
[1763529565074,0.3608,91142.0,91130.0,0.0139]
[1763529565075,0.3608,91142.0,91141.0,0.1528311]
[1763529565581,0.3608,91142.0,91141.0,0.04302]
[1763529566288,0.3628,91142.0,91141.0,0.04302]
[1763529566991,0.41048,91142.0,91141.0,0.04302]
[1763529567489,0.3866,91142.0,91141.0,0.04302]
[1763529567690,0.3846,91142.0,91141.0,0.04302]
[1763529567891,0.3856,91142.0,91141.0,0.04302]
[1763529568076,0.3628,91142.0,91141.0,0.1528311]
[1763529569588,0.40736,91142.0,91141.0,0.04302]
[1763529570381,0.40636,91142.0,91141.0,0.04302]
[1763529570783,0.40536,91142.0,91141.0,0.04302]
[1763529573583,0.40636,91142.0,91141.0,0.04302]
[1763529573884,0.40736,91142.0,91141.0,0.04302]
[1763529574192,0.40636,91142.0,91141.0,0.04302]
[1763529574389,0.40736,91142.0,91141.0,0.04302]
[1763529575194,0.40636,91142.0,91141.0,0.04302]
[1763529575395,0.40736,91142.0,91141.0,0.04302]
[1763529575780,0.40736,91142.0,91140.0,0.01609803]
[1763529575781,0.1543711,91141.0,91140.0,0.00219803]
[1763529575981,0.1543711,91141.0,91140.0,0.04610803]
[1763529576482,0.1543711,91141.0,91140.0,0.00219803]
[1763529577091,0.1553711,91141.0,91140.0,0.00219803]
[1763529577599,0.1543808,91133.0,91132.0,0.02199458]
[1763529578192,0.1543808,91133.0,91132.0,0.00016458]
[1763529578690,0.5151808,91133.0,91132.0,0.00016458]
[1763529578881,0.3151808,91133.0,91132.0,0.00016458]
[1763529579283,0.4250016,91133.0,91132.0,0.00016458]
[1763529580682,0.4270016,91133.0,91132.0,0.00016458]
[1763529581290,0.4260016,91133.0,91132.0,0.00016458]
[1763529581495,0.4270016,91133.0,91132.0,0.00016458]
[1763529582090,0.1098352,91121.0,91120.0,0.03573]
[1763529582291,0.1098352,91121.0,91120.0,0.05781]
[1763529582292,0.4706352,91121.0,91120.0,0.05781]
[1763529582898,0.4706352,91121.0,91120.0,0.0139]
[1763529583597,0.4706352,91121.0,91120.0,0.05781]
[1763529584201,0.4706352,91121.0,91120.0,0.06000803]
[1763529584592,0.4716352,91121.0,91120.0,0.06000803]
[1763529585091,0.3618,91121.0,91120.0,0.06000803]
[1763529586687,0.3618,91121.0,91111.0,0.11001128]
[1763529586688,0.1098461,91112.0,91111.0,0.00016458]
[1763529586992,0.4706461,91112.0,91111.0,0.00016458]
[1763529589185,0.48154075,91112.0,91111.0,0.00016458]
[1763529590692,0.4706461,91112.0,91111.0,0.00016458]
[1763529590893,0.4706461,91112.0,91111.0,0.15392188]
[1763529591089,0.7360061,91112.0,91111.0,0.15392188]
[1763529592599,0.7360061,91112.0,91111.0,0.04407458]
[1763529593994,0.4706461,91112.0,91111.0,0.04407458]
[1763529594300,0.7360061,91112.0,91111.0,0.04407458]
[1763529594502,0.3608,91112.0,91111.0,0.04407458]
[1763529594893,0.03898738,91135.0,91126.0,0.04391]
[1763529595093,0.09746847,91157.0,91120.0,0.01327]
[1763529595094,0.04456,91144.0,91143.0,0.05718]
[1763529595296,0.04456,91144.0,91140.0,0.00219803]
[1763529595602,0.04456,91141.0,91140.0,0.00219803]
[1763529595794,0.04456,91141.0,91140.0,0.04610803]
[1763529595993,0.04456,91141.0,91140.0,0.00219803]
[1763529596195,0.04456,91141.0,91140.0,0.04610803]
[1763529596396,0.04456,91141.0,91140.0,0.00219803]
[1763529596596,0.04456,91132.0,91131.0,0.00016458]
[1763529597300,0.04456,91132.0,91131.0,0.04407458]
[1763529597893,0.04456,91132.0,91131.0,0.00016458]
[1763529598096,0.40536,91132.0,91131.0,0.00016458]
[1763529598898,0.40636,91132.0,91131.0,0.00016458]
[1763529599098,0.38328,91132.0,91131.0,0.00016458]
[1763529599301,0.40657,91132.0,91131.0,0.00016458]
[1763529599603,0.40557,91132.0,91131.0,0.00016458]
[1763529599800,0.40657,91132.0,91131.0,0.00016458]
[1763529600493,0.40657,91132.0,91107.0,0.05568]
[1763529600494,0.04593,91108.0,91107.0,0.05568]
[1763529600690,0.04593,91108.0,91099.0,0.3608]
[1763529600691,0.04593,91100.0,91099.0,0.3608]
[1763529601009,0.3608,91109.0,91108.0,0.04241]
[1763529601211,0.08491738,91128.0,91121.0,0.1098352]
[1763529601504,0.04593,91121.0,91120.0,0.00219803]
[1763529601801,0.04593,91121.0,91120.0,0.05773803]
[1763529601996,0.04593,91121.0,91120.0,0.00219803]
[1763529602201,0.04593,91121.0,91120.0,0.36299803]
[1763529602704,0.1557652,91121.0,91120.0,0.3608]
[1763529603004,0.04593,91121.0,91120.0,0.36299803]
[1763529603302,0.04593,91121.0,91115.0,0.00016458]
[1763529603303,0.04593,91116.0,91115.0,0.00016458]
[1763529603502,0.04593,91116.0,91115.0,0.04257458]
[1763529603696,0.04593,91116.0,91115.0,0.02138458]
[1763529603896,0.04593,91116.0,91115.0,0.00016458]
[1763529605292,0.04593,91116.0,91106.0,0.0295467]
[1763529605293,0.04593,91107.0,91106.0,0.0295467]
[1763529605497,0.04593,91097.0,91087.0,0.0393956]
[1763529605698,0.01176,91110.0,91080.0,0.01313]
[1763529605699,0.470675,91088.0,91080.0,0.01313]
[1763529605906,0.470675,91088.0,91080.0,0.01532803]
[1763529606796,0.470675,91088.0,91080.0,0.01313]
[1763529607097,0.1098859,91079.0,91078.0,0.00016468]
[1763529607394,0.3608,91079.0,91078.0,0.04257468]
[1763529608200,0.3598,91079.0,91078.0,0.04257468]
[1763529608704,0.3598,91079.0,91078.0,0.04357468]
[1763529608905,0.3598,91079.0,91078.0,0.04557468]
[1763529609407,0.3598,91079.0,91078.0,0.00316468]
[1763529609705,0.4696859,91079.0,91078.0,0.00316468]
[1763529609905,0.1099022,91066.0,91061.0,0.04241]
[1763529610904,0.1089022,91066.0,91065.0,0.04241]
[1763529611305,0.109898,91069.0,91065.0,0.04241]
[1763529611699,0.3608,91070.0,91069.0,0.05554]
[1763529612404,0.00016468,91073.0,91072.0,0.04241]
[1763529612802,0.26544,91085.0,91084.0,0.04241]
[1763529613002,0.3608,91091.0,91090.0,0.04241]
[1763529613203,0.08598023,91099.0,91098.0,0.04241]
[1763529613804,0.26544,91104.0,91103.0,0.04241]
[1763529615308,0.1098569,91103.0,91100.0,0.00219803]
[1763529615708,0.1098702,91092.0,91091.0,0.05554]
[1763529617014,0.1098645,91097.0,91096.0,0.04241]
[1763529617312,0.3608,91102.0,91091.0,0.03435]
[1763529617313,0.1098702,91092.0,91091.0,0.03435]
[1763529617508,0.3608,91093.0,91092.0,0.04241]
[1763529618015,0.002,91103.0,91102.0,0.04241]
[1763529618411,0.26544,91104.0,91103.0,0.04241]
[1763529619407,0.1098504,91109.0,91107.0,0.04241]
[1763529619820,0.1098521,91107.0,91104.0,0.01313]
[1763529620518,0.1098594,91101.0,91100.0,0.00219803]
[1763529620819,0.4706594,91101.0,91100.0,0.04460803]
[1763529621213,0.3608,91101.0,91100.0,0.04460803]
[1763529621620,0.3618,91101.0,91100.0,0.04460803]
[1763529622005,0.3608,91101.0,91100.0,0.04460803]
[1763529622314,0.001,91101.0,91100.0,0.04460803]
[1763529622715,0.0008354,91101.0,91100.0,0.04460803]
[1763529623016,0.00016468,91108.0,91107.0,0.1544021]
[1763529623707,0.00016468,91108.0,91107.0,0.5152021]
[1763529624305,0.00116468,91108.0,91107.0,0.5152021]
[1763529624506,0.00216468,91108.0,91107.0,0.5152021]
[1763529624904,0.3608,91123.0,91117.0,0.04455]
[1763529625106,0.3608,91123.0,91113.0,0.01363]
[1763529625107,0.3608,91123.0,91122.0,0.04455]
[1763529625315,0.00027435,91126.0,91125.0,0.04455]
[1763529627305,0.11010355,91126.0,91125.0,0.04655]
[1763529627909,0.11010355,91126.0,91125.0,0.04555]
[1763529629119,0.11010355,91126.0,91125.0,0.04455]
[1763529629927,0.00027435,91126.0,91125.0,0.04455]
[1763529630320,0.00027435,91126.0,91125.0,0.02144]
[1763529630523,0.1098304,91125.0,91124.0,0.05743]
[1763529631418,0.00027435,91126.0,91125.0,0.0438]
[1763529632717,0.1098304,91125.0,91124.0,0.01363]
[1763529633522,0.00027435,91126.0,91125.0,0.0438]
[1763529637832,0.00027435,91126.0,91125.0,0.1536304]
[1763529638928,4.35e-06,91126.0,91125.0,0.1536304]
[1763529639124,0.3608,91132.0,91131.0,0.0438]
[1763529639730,0.1098198,91134.0,91133.0,0.0438]
[1763529639930,0.00016468,91135.0,91134.0,0.1536196]
[1763529643736,0.3608,91147.0,91146.0,0.0438]
[1763529645151,0.3618,91147.0,91146.0,0.0438]
[1763529645639,0.3628,91147.0,91146.0,0.0438]
[1763529646643,0.002,91147.0,91146.0,0.0438]
[1763529650144,0.3628,91147.0,91146.0,0.0438]
[1763529652940,0.3628,91147.0,91146.0,0.1536051]
[1763529653146,0.002,91147.0,91146.0,0.1536051]
[1763529653942,0.002,91147.0,91146.0,0.0438]
[1763529654137,0.001,91147.0,91146.0,0.0438]
[1763529654432,0.1098124,91140.0,91136.0,0.0393956]
[1763529654638,0.1098124,91140.0,91136.0,0.01383]
[1763529654837,0.1098124,91140.0,91137.0,0.02227458]
[1763529655145,0.3608,91138.0,91137.0,0.02227458]
[1763529655439,0.3608,91138.0,91137.0,0.04396458]
[1763529657037,0.3608,91138.0,91137.0,0.00016458]
[1763529657749,0.3608,91138.0,91137.0,0.04549458]
[1763529658951,0.62608,91138.0,91137.0,0.04549458]
[1763529659640,0.3608,91138.0,91137.0,0.15531058]
[1763529659845,0.1098063,91145.0,91144.0,0.1098075]
[1763529660042,0.3608,91148.0,91147.0,0.04537]
[1763529660243,0.3608,91148.0,91147.0,0.1551739]
[1763529660447,0.470592,91157.0,91152.0,0.01336]
[1763529660646,0.1097958,91154.0,91153.0,0.04537]
[1763529661254,0.3608,91157.0,91156.0,0.04537]
[1763529661639,0.3618,91157.0,91156.0,0.04537]
[1763529662145,0.3608,91157.0,91156.0,0.04537]
[1763529663548,0.3608,91157.0,91152.0,0.1231578]
[1763529663549,0.4705822,91165.0,91164.0,0.04537]
[1763529663845,0.1097822,91165.0,91164.0,0.04537]
[1763529664953,0.1117822,91165.0,91164.0,0.04537]
[1763529665652,0.1137822,91165.0,91164.0,0.04537]
[1763529666046,0.1117822,91165.0,91164.0,0.04537]
[1763529666247,0.1137822,91165.0,91164.0,0.04537]
[1763529667545,0.1137822,91165.0,91153.0,0.02957555]
[1763529667546,0.1097931,91156.0,91153.0,0.02957555]
[1763529667745,0.62604,91156.0,91143.0,0.0393956]
[1763529667957,0.62604,91156.0,91134.0,0.01336]
[1763529667958,0.1098184,91135.0,91134.0,0.0981256]
[1763529668144,0.1098139,91139.0,91138.0,0.04537]
[1763529668456,0.1098184,91135.0,91134.0,0.05873]
[1763529669851,0.1098232,91131.0,91130.0,0.00219803]
[1763529670255,0.1098232,91131.0,91130.0,0.02434803]
[1763529670443,0.1098232,91131.0,91130.0,0.04756803]
[1763529672247,0.08345077,91131.0,91130.0,0.04756803]
[1763529673150,0.08345077,91131.0,91130.0,0.00219803]
[1763529673352,0.08345077,91131.0,91130.0,0.02434803]
[1763529674449,0.08345077,91131.0,91130.0,0.04756803]
[1763529674850,0.08445077,91131.0,91130.0,0.04756803]
[1763529675854,0.08445077,91131.0,91125.0,0.01352458]
[1763529676162,0.4706292,91126.0,91125.0,0.00016458]
[1763529676461,0.4706292,91126.0,91125.0,0.01352458]
[1763529676645,0.4706292,91126.0,91125.0,0.00016458]
[1763529678355,0.4706292,91126.0,91125.0,0.03567458]
[1763529678752,0.3608,91126.0,91125.0,0.05889458]
[1763529679062,0.4706196,91134.0,91133.0,0.04537]
[1763529679264,0.7358996,91134.0,91133.0,0.04537]
[1763529679965,0.3608,91134.0,91133.0,0.1551908]
[1763529680456,0.3608,91134.0,91133.0,0.04537]
[1763529680855,0.3628,91134.0,91133.0,0.04537]
[1763529681165,0.4726196,91134.0,91133.0,0.04537]
[1763529681561,0.4726196,91134.0,91133.0,0.02215]
[1763529682257,0.4726196,91134.0,91133.0,0.04537]
[1763529682457,0.4716196,91134.0,91133.0,0.04537]
[1763529682653,0.4726196,91134.0,91133.0,0.04537]
[1763529683057,0.4726196,91134.0,91133.0,0.04404]
[1763529683465,0.4716196,91134.0,91133.0,0.04404]
[1763529683868,0.4706196,91134.0,91133.0,0.04404]
[1763529684069,0.1098232,91131.0,91130.0,0.00219803]
[1763529684257,0.1098232,91131.0,91125.0,0.03597458]
[1763529684258,0.1098292,91126.0,91125.0,0.03597458]
[1763529684564,0.1098292,91126.0,91125.0,0.01352458]
[1763529684765,0.1098292,91126.0,91125.0,0.03597458]
[1763529684955,0.1098292,91126.0,91125.0,0.05786458]
[1763529685964,0.4706292,91126.0,91125.0,0.00016458]
[1763529686363,0.4706292,91126.0,91111.0,0.0393956]
[1763529686364,0.1098401,91117.0,91111.0,0.0393956]
[1763529686566,0.1098401,91117.0,91107.0,0.07240625]
[1763529686567,0.7359201,91117.0,91107.0,0.01336]
[1763529687374,0.7359201,91117.0,91107.0,0.01352458]
[1763529688667,0.7359201,91117.0,91116.0,0.05871]
[1763529689274,0.7359201,91117.0,91116.0,0.03581]
[1763529690370,0.7359201,91117.0,91116.0,0.05871]
[1763529697791,0.7359201,91117.0,91116.0,0.01336]
[1763529698187,0.7359201,91117.0,91116.0,0.05931]
[1763529698690,0.7359201,91117.0,91116.0,0.03641]
[1763529698891,0.7359201,91117.0,91112.0,0.00014112]
[1763529698892,0.1098449,91113.0,91112.0,0.01369112]
[1763529699081,0.08346684,91113.0,91112.0,0.00014112]
[1763529699490,0.08346684,91113.0,91086.0,7e-08]
[1763529699491,0.1098738,91089.0,91086.0,7e-08]
[1763529699679,0.1098956,91071.0,91070.0,0.0595]
[1763529699884,0.3752156,91071.0,91070.0,0.0595]
[1763529700492,0.37534413,91071.0,91070.0,0.0595]
[1763529700692,0.39976967,91071.0,91070.0,0.01355]
[1763529700878,0.76056967,91071.0,91070.0,0.01355]
[1763529701292,0.73614413,91071.0,91070.0,0.01355]
[1763529701691,0.109904,91064.0,91061.0,0.00016468]
[1763529702185,0.109904,91064.0,91063.0,0.0595]
[1763529702386,0.82599009,91071.0,91070.0,0.04595]
[1763529702594,0.82599009,91071.0,91070.0,0.04814803]
[1763529702893,0.82607009,91071.0,91070.0,0.04814803]
[1763529703888,0.45077419,91071.0,91070.0,0.04814803]
[1763529704088,0.71617419,91071.0,91070.0,0.04814803]
[1763529704494,0.36092853,91071.0,91070.0,0.04814803]
[1763529705191,0.00012853,91071.0,91070.0,0.04814803]
[1763529705590,0.00016468,91080.0,91070.0,0.04814803]
[1763529705785,0.00016468,91080.0,91079.0,0.04595]
[1763529707785,4.68e-06,91080.0,91079.0,0.04595]
[1763529707991,0.1098643,91097.0,91093.0,0.04595]
[1763529708395,0.1098643,91097.0,91096.0,0.04595]
[1763529709592,0.1108643,91097.0,91096.0,0.04595]
[1763529709990,0.1098714,91091.0,91090.0,0.0595]
[1763529710188,0.1098714,91091.0,91090.0,0.06169803]
[1763529710497,0.3752714,91091.0,91090.0,0.06169803]
[1763529710992,0.2654,91091.0,91090.0,0.06169803]
[1763529711295,0.2664,91091.0,91090.0,0.06169803]
[1763529711993,0.2674,91091.0,91090.0,0.06169803]
[1763529713600,0.002,91091.0,91090.0,0.06169803]
[1763529716602,0.001,91091.0,91090.0,0.06169803]
[1763529717192,0.1098685,91094.0,91093.0,0.04595]
[1763529719099,0.19897285,91098.0,91097.0,0.04414]
[1763529719403,0.1098638,91098.0,91097.0,0.04414]
[1763529719600,0.1098638,91098.0,91097.0,0.1540042]
[1763529719999,0.3608,91100.0,91099.0,0.04368]
[1763529720392,0.1098558,91104.0,91103.0,0.04368]
[1763529722005,0.1108558,91104.0,91103.0,0.04368]
[1763529723108,0.14040586,91104.0,91103.0,0.04368]
[1763529723297,0.14140586,91104.0,91103.0,0.04368]
[1763529723805,0.3608,91117.0,91116.0,0.04368]
[1763529723994,0.39035937,91117.0,91116.0,0.04368]
[1763529724607,0.02955937,91117.0,91116.0,0.04368]